Cogmind - Beta 15 @@@ ROGUE MODE // 2025.06.10 @ 17:47:02 Player: Cogchaaaan Result: Destroyed by AP7-3 with Heavy Quantum Rifle Performance ------------- Evolutions (8) 4000 Regions Visited (20) 4000 Robots Destroyed (396) 1980 Value Destroyed (21275) 21275 Prototype IDs (98) 1960 Alien Tech Used (2) 400 Bonus (8522) 8522 TOTAL SCORE: 42137 Bonus ------- High Alert Combat Kills 4582 Met Zhirov 300 Met Warlord at Base 500 MAIN.C Attacked Warlord 500 Warlord Defense Kills 140 Met Warlord at Research 2000 Scanned by Researcher 500 Cogmind --------- Core Integrity 0/1450 Matter 290/300 Energy 239/239 System Corruption 45% Temperature Cool (9) Movement Hovering (84) Location -2/Protoforge Parts ------- > --- POWER (3) -------- Particle-Quantum Reactor > --- PROPULSION (6) --- Hovering Gravjet-Fieldthrust Exoskeleton > --- UTILITY (10) ----- Armored Scrap Engine Huge Storage Unit Experimental Core Analyzer > --- WEAPON (4) ------- Experimental Jetlance Experimental Jetlance > --- INVENTORY (25) --- Vortex Chain Reactor Experimental Coolant Injector Large Matter Pod (150) Structural Scanner Long-range Sensor Array Concept Antimissile System Crosscalibrator Transdimensional Reconstructor Subatomic Replicator Terrabomb Concept Lightning Penetrator Compact HERF Cannon Vortex Driver (29) Concept Plasma Driver Concept Plasma Driver Core Cannon Concept Helical Railcannon Improved Plasma Cutter Sigix Broadsword Faulty Experimental Jetlance Peak State ------------ > --- POWER ------------ Vortex Chain Reactor Particle-Quantum Reactor > --- PROPULSION ------- Hovering Gravjet-Fieldthrust Exoskeleton > --- UTILITY ---------- Armored Scrap Engine Huge Storage Unit Advanced Signal Interpreter Experimental Core Analyzer Centrium Light Armor Plating Centrium Light Armor Plating Centrium Medium Armor Plating System Mapper > --- WEAPON ----------- Core Cannon Prc. Thermal Caster Construct/C > --- INVENTORY -------- Experimental Coolant Injector Large Matter Pod Structural Scanner Long-range Sensor Array Centrium Medium Armor Plating Advanced Point Defense System High-powered Tractor Beam Transdimensional Reconstructor Subatomic Replicator Terrabomb Compact HERF Cannon Compact HERF Cannon Compact HERF Cannon Matter Neutralizer Vortex Driver Gamma Bomb Array Concept Rapid Grenade Launcher Concept Tiamat Rocket Array Improved Plasma Cutter Sigix Broadsword Lance [Rating: 206] Favorites ----------- Power Constructs Engine Cooled Ion Engine Power Core Enhanced Nuclear Core Reactor Constructs Propulsion Armored Treads Treads Armored Treads Leg Improved Aluminum Leg Hover Unit Constructs Flight Unit Improved Flight Unit Utility Armored Scrap Engine Device Armored Scrap Engine Storage Huge Storage Unit Processor Improved Signal Interpreter Hackware System Mapper Protection Centrium Medium Armor Plating Weapon Constructs Energy Gun Heavy Particle Gun Energy Cannon Cooled Particle Cannon Ballistic Gun Precision Assault Rifle Ballistic Cannon Constructs Launcher Gamma Bomb Array Special Weapon Improved Plasma Cutter Slashing Weapon Katana Piercing Weapon Lance Build | -11 -10 -10 -8 -7 -7 -7 -5 -5 -5 -5 -4 -4 -4 -4 -4 -3 -3 -2 -2 -2 ------- Run | Yrd Mat Sub Mat Fac Sto Rec Fac Upp Upp War Pro Fac Upp Upp Zhi Pro Res Res Qua Frg Slots Evolved 16 | . . . 4 2 . . 4 . . . . 2 . . . . 2 2 . . Power 2 | . . . . . . . 1 . . . . . . . . . . 1 . . Propulsion 4 | . . . 2 . . . 1 . . . . . . . . . 1 . . . Utility 8 | . . . 1 2 . . 2 . . . . 2 . . . . 1 . . . Weapon 2 | . . . 1 . . . . . . . . . . . . . . 1 . . Parts Attached 179 | 8 4 13 35 17 16 3 6 . 2 17 2 7 2 1 4 1 8 7 3 23 Power 11 | 1 . 1 3 1 1 . . . . 2 . . 1 . . . . . . 1 Engine 6 | 1 . 1 3 1 . . . . . . . . . . . . . . . . Core 3 | . . . . . 1 . . . . 2 . . . . . . . . . . Reactor 2 | . . . . . . . . . . . . . 1 . . . . . . 1 Propulsion 31 | 2 2 5 13 2 3 1 . . . 3 . . . . . . . . . . Treads 19 | . . 3 11 2 2 1 . . . . . . . . . . . . . . Leg 8 | 2 2 2 . . . . . . . 2 . . . . . . . . . . Wheel . | . . . . . . . . . . . . . . . . . . . . . Hover 3 | . . . 1 . 1 . . . . 1 . . . . . . . . . . Flight 1 | . . . 1 . . . . . . . . . . . . . . . . . Utility 84 | 2 . . 7 9 6 2 5 . 2 10 1 7 1 1 4 1 6 5 2 13 Device 36 | 1 . . 3 3 3 1 3 . 1 6 1 2 1 1 2 1 3 . . 4 Storage 8 | 1 . . 1 2 1 . 1 . 1 . . . . . . . . . 1 . Processor 11 | . . . . 2 1 1 . . . 1 . 2 . . 1 . 1 2 . . Hackware 2 | . . . . . . . . . . . . 1 . . . . 1 . . . Protection 27 | . . . 3 2 1 . 1 . . 3 . 2 . . 1 . 1 3 1 9 Artifact . | . . . . . . . . . . . . . . . . . . . . . Weapon 53 | 3 2 7 12 5 6 . 1 . . 2 1 . . . . . 2 2 1 9 Energy Gun 9 | 2 . 1 3 . 2 . . . . . . . . . . . . . . 1 Energy Cannon 17 | . . 2 3 1 2 . . . . 1 1 . . . . . 2 1 1 3 Ballistic Gun 14 | 1 2 3 4 3 . . . . . . . . . . . . . 1 . . Ballistic Cannon 2 | . . 1 . . 1 . . . . . . . . . . . . . . . Launcher 6 | . . . 1 1 1 . . . . . . . . . . . . . . 3 Special Weapon 1 | . . . . . . . . . . 1 . . . . . . . . . . Impact Weapon . | . . . . . . . . . . . . . . . . . . . . . Slashing Weapon 1 | . . . 1 . . . . . . . . . . . . . . . . . Piercing Weapon 3 | . . . . . . . 1 . . . . . . . . . . . . 2 Special Melee Weapon . | . . . . . . . . . . . . . . . . . . . . . Unidentified Prototypes 31 | . . . 6 1 5 1 1 . . 4 . . 1 . 2 . 2 2 . 6 Corrupted Parts 1 | . . . . . . . . . . . . . . . . . . . . 1 System Corruption 8 | . . . . . . . . . . . . . . . . . . . . 8 Parts Lost 56 | . . 8 1 1 1 1 . . 1 1 . 7 . . . 1 3 . 3 28 Power 8 | . . 1 . . . . . . 1 . . 1 . . . . . . 1 4 Propulsion 7 | . . 4 . . . 1 . . . . . . . . . . . . . 2 Utility 28 | . . . 1 1 . . . . . 1 . 5 . . . 1 3 . 2 14 Weapon 13 | . . 3 . . 1 . . . . . . 1 . . . . . . . 8 Highest Loss Streak 7 | . . 5 1 1 1 1 . . 1 1 . 4 . . . 1 1 . 2 7 To Critical Strikes 3 | . . . . . . . . . . . . . . . . . . . . 3 Average Backups 18 | 2 6 7 13 14 16 23 22 23 24 21 22 21 18 17 17 17 17 18 21 20 Power 1 | . 1 . . 1 1 1 1 1 1 . 1 1 2 1 1 1 1 1 1 . Propulsion 2 | 1 3 2 3 3 4 4 1 1 1 1 1 1 1 1 1 1 1 . . . Utility 8 | . . 1 6 5 6 10 13 15 16 14 14 13 8 9 8 8 7 8 8 6 Weapon 5 | . 2 2 2 4 4 7 5 5 5 4 5 4 5 5 5 5 6 6 7 8 Tool/Special . | . . . . . . . . . . . . . . . . . . . . . Unused Backups 45 | . . . 7 2 2 5 6 . 2 2 . . 1 . . . 2 3 1 12 Power 5 | . . . 2 . 1 . . . . . . . 1 . . . . . 1 . Propulsion 6 | . . . 1 . . 3 1 . . . . . . . . . . 1 . . Utility 11 | . . . 3 1 . . 2 . 1 1 . . . . . . . 1 . 2 Weapon 20 | . . . 1 1 1 2 3 . 1 1 . . . . . . 2 1 . 7 Tool/Special 3 | . . . . . . . . . . . . . . . . . . . . 3 Average Slot Usage (%) 75 | . 100 96 96 99 98 82 57 58 58 60 58 62 62 63 62 63 60 53 57 54 Engine 3 | . 14 13 9 7 1 . 4 5 5 3 . . . . . . . . . . Core 2 | . . . . . 5 6 . . . 3 5 1 . . . . . . . . Reactor 1 | . . . . . . . . . . . . 3 5 5 5 5 4 4 4 4 Treads 12 | . . 5 33 30 29 20 5 5 5 4 5 1 . . . . . 1 . . Leg 2 | . 28 22 . . . . . . . . . 1 5 5 5 5 4 2 . 2 Device 12 | . 14 14 9 13 7 7 15 16 16 13 15 14 25 26 25 25 25 14 14 9 Storage 6 | . 14 14 9 7 7 7 5 5 5 5 5 5 5 5 5 5 4 4 4 4 Processor 8 | . . . . 6 14 15 11 11 11 11 11 14 5 5 5 5 4 7 8 7 Protection 4 | . . . 8 8 7 2 . . . 2 . 4 5 5 4 5 1 3 5 9 Energy Gun 1 | . 9 . 10 . 3 . . . . . . . . . . . . . . 1 Energy Cannon 6 | . . 8 2 15 8 12 3 5 5 5 3 4 . . . . 2 4 4 3 Ballistic Gun 3 | . 18 15 14 4 8 3 . . . . . . . . . . . . . . Ballistic Cannon 1 | . . . . . . 1 4 . . . 4 5 5 5 5 5 4 4 4 3 Piercing Weapon 1 | . . . . . . . 1 4 4 4 . . 5 5 5 5 1 . 2 2 Peak Build Rating 206 | 7 12 12 37 45 55 64 92 90 90 115 110 130 130 123 129 129 173 186 203 206 Average Rating 87 | 5 10 11 27 41 49 58 75 86 84 93 104 120 123 122 122 122 152 161 190 179 On Entrance 86 | . 7 12 9 36 43 54 63 86 87 80 108 100 115 123 121 122 122 159 180 184 Naked Turns . | . . . . . . . . . . . . . . . . . . . . . Heaviest Build 182 | 11 15 23 49 61 112 112 119 108 116 114 121 127 114 75 77 77 81 154 144 182 Greatest Support 236 | 20 26 40 80 80 88 80 93 93 93 147 147 93 93 93 93 93 111 214 214 236 Greatest Overweight (x) 3 | 2 . . . . 1 3 1 1 1 1 1 1 1 . . . . 1 . 1 Average Overweight (x) . | . . . . . . 1 1 1 . . . 1 . . . . . . . . Largest Inventory Capacity 25 | 8 8 8 15 15 25 25 25 25 25 25 25 25 25 20 20 20 20 25 25 25 Average Capacity 20 | 7 8 8 14 15 17 25 25 25 24 23 25 25 23 20 20 20 20 22 25 25 Most Carried 25 | 4 8 8 15 15 25 25 25 25 25 25 25 25 22 19 20 20 20 22 25 25 Average Carried 19 | 2 6 7 13 14 16 23 22 24 24 23 24 23 20 19 19 19 19 19 24 22 Final Capacity 25 | 8 8 8 15 15 25 25 25 25 20 25 25 25 20 20 20 20 20 25 25 25 Final Carried 25 | 4 8 7 15 15 25 23 23 25 20 25 25 22 19 19 20 19 20 21 21 23 Scrap Engine Consumption 273 | . . . . . . 44 19 . 2 25 3 13 3 . 2 1 37 22 7 95 Constructs Created 7 | . . . . . . 3 . . . . . . . . . . . 1 . 3 Constructs Modified 116 | . . . . . . 13 11 1 . 10 4 6 1 1 1 . 14 15 3 36 Class Distribution -------------------- 35% | Construct 14% | Hacker-Construct 13% | Gunner 11% | Mutant 6% | Tank 5% | Skirmisher 4% | Scavenger-Tank 3% | Assassin Dominant Class ---------------- Mutant | -10/Materials Mutant | -10/Subcaves Scavenger-Tank | -8/Materials Skirmisher | -7/Factory Gunner | -7/Storage Gunner | -7/Recycling Construct | -5/Factory Construct | -5/Upper Caves Construct | -5/Upper Caves Construct | -5/Warlord Construct | -4/Proximity Caves Construct | -4/Factory Construct | -4/Upper Caves Construct | -4/Upper Caves Construct | -4/Zhirov Construct | -3/Proximity Caves Hacker-Construct | -3/Research Hacker-Construct | -2/Research Hacker-Construct | -2/Quarantine Hacker-Tank | -2/Protoforge Resources | -11 -10 -10 -8 -7 -7 -7 -5 -5 -5 -5 -4 -4 -4 -4 -4 -3 -3 -2 -2 -2 ----------- Run | Yrd Mat Sub Mat Fac Sto Rec Fac Upp Upp War Pro Fac Upp Upp Zhi Pro Res Res Qua Frg Matter Collected 10415 | 280 21 488 1229 1079 862 562 436 55 277 257 397 669 160 27 135 102 779 220 637 1743 Remotely . | . . . . . . . . . . . . . . . . . . . . . Salvage Created 22864 | 116 21 489 2287 1160 1838 1615 733 170 453 56 460 936 73 . 323 235 2483 117 956 8343 Parts 995 | 8 4 24 112 51 83 57 32 6 10 3 18 48 4 . 3 9 124 4 53 342 Haulers Intercepted 11 | . . . 5 1 4 . . . . . . . . . . . . 1 . . Recyclers Shooed 6 | 1 . . 1 . 1 3 . . . . . . . . . . . . . . Parts Field Recycled . | . . . . . . . . . . . . . . . . . . . . . Retrieved Matter . | . . . . . . . . . . . . . . . . . . . . . Parts Self-Destructed 40 | . . 4 . . . . . 4 11 . 10 . 3 . . 8 . . . . Prevented . | . . . . . . . . . . . . . . . . . . . . . Kills | -11 -10 -10 -8 -7 -7 -7 -5 -5 -5 -5 -4 -4 -4 -4 -4 -3 -3 -2 -2 -2 ------- Run | Yrd Mat Sub Mat Fac Sto Rec Fac Upp Upp War Pro Fac Upp Upp Zhi Pro Res Res Qua Frg Combat Hostiles Destroyed 304 | . . 11 36 14 29 8 15 8 10 1 15 12 1 . . 3 33 . 9 99 Melee 9 | . . . . . . 2 . . 2 . . . . . . . . . 1 4 Guns 52 | . . 8 29 4 10 1 . . . . . . . . . . . . . . Cannons 135 | . . 2 3 10 16 4 11 2 4 1 3 12 1 . . 3 24 . 7 32 AOE 47 | . . . 3 . 2 . 4 6 4 . 12 . . . . . . . . 16 Classes Destroyed 25 | 2 1 2 8 2 . 1 . . 1 . . . . . . . . . 2 6 Worker 12 | . . . 1 1 1 1 2 . . . . 1 . . . . 2 2 . 1 Builder 17 | . 1 . 2 1 2 3 . . . . . 1 . . . . 4 . 1 2 Tunneler 4 | 2 . . 1 1 . . . . . . . . . . . . . . . . Hauler 11 | . . . 5 1 4 . . . . . . . . . . . . 1 . . Recycler 27 | 1 . . 4 4 3 10 1 . . . . 2 . . . . 1 . 1 . Mechanic 3 | . . . . 1 . . . . . . . . . . . . . . . 2 Operator 1 | . . . . . . . . . . . . . . . . . . . 1 . Drone 2 | . . . . . . . . . . . . . . . . . . . . 2 Watcher 13 | . . . 4 3 1 . 3 . . . . . . . . . 1 . 1 . Swarmer 39 | . . . 6 3 4 . 8 3 . . 2 3 . . . . 6 . . 4 Saboteur 2 | . . . . . . . . . . . . . . . . . . . . 2 Grunt 77 | . . . 17 1 10 . 1 4 5 . 7 . . . . . 9 . . 23 Brawler 12 | . . . 2 . . . . . 2 . 4 . . . . . . . . 4 Duelist 10 | . . . . . . . . . 2 . 2 . . . . . 1 . . 5 Protector 3 | . . . . . . 1 . . . . . . . . . . . . . 2 Researcher 3 | . . . . . . . . . . . . . . . . . . . . 3 Sentry 47 | . . . 9 3 11 5 2 . 1 . 1 1 1 . . 1 4 . . 8 Hunter 24 | . . . 2 1 1 . . 1 . . . 2 . . . 2 8 . 2 5 Programmer 41 | . . . . 6 3 . 4 . . 1 . 6 . . . . 5 . 6 10 Q-Series 2 | . . . . . . . . . . . . . . . . . . . . 2 Hotshot 16 | . . . . . . . . . . . . . . . . . . . . 16 Decapitator 7 | . . . . . . . . . . . . . . . . . . . . 7 Immortal 5 | . . . . . . . . . . . . . . . . . . . . 5 V-Series 4 | . . . . . . . . . . . . . . . . . . . . 4 Artisan 1 | . . 1 . . . . . . . . . . . . . . . . . . Subdweller 13 | . . 11 . . . 2 . . . . . . . . . . . . . . Decomposer 1 | . . . . . . . . . 1 . . . . . . . . . . . Dragon 1 | . . . . . . . . . . . . . . . . . . . 1 . Best Kill Streak 11 | 2 1 2 5 3 6 3 7 8 5 1 9 6 2 . . 3 6 2 4 11 Combat Bots Only 10 | . . 2 4 3 4 2 4 8 5 1 9 3 2 . . 3 4 . 2 10 Max Kills in Single Turn 6 | 1 1 1 3 2 2 2 2 3 2 1 2 4 1 . . 1 2 1 1 6 Gunslinging . | . . . . . . . . . . . . . . . . . . . . . Exploded 5 | . . . 3 . 2 . 2 3 2 . 2 . . . . . . . . 5 Melee 1 | . . . . . . 1 . . 1 . . . . . . . . . 1 1 Uniques/NPCs Destroyed . | . . . . . . . . . . . . . . . . . . . . . Combat | -11 -10 -10 -8 -7 -7 -7 -5 -5 -5 -5 -4 -4 -4 -4 -4 -3 -3 -2 -2 -2 -------- Run | Yrd Mat Sub Mat Fac Sto Rec Fac Upp Upp War Pro Fac Upp Upp Zhi Pro Res Res Qua Frg Hostile Shots Fired 2181 | . . 75 127 162 362 57 51 22 32 41 53 126 4 . . 28 238 . 108 695 Missed 743 | . . 27 41 61 124 23 18 8 8 11 23 33 1 . . 4 107 . 45 209 Intercepted 6 | . . . . . . . . . . . . . . . . . . . . 6 Hits 1438 | . . 48 86 101 238 34 33 14 24 30 30 93 3 . . 24 131 . 63 486 Melee 52 | . . . 1 . . . . . 2 . 1 . . . . . . . . 48 Projectile 1386 | . . 48 85 101 238 34 33 14 22 30 29 93 3 . . 24 131 . 63 438 AOE 13 | . . 6 . . 1 . . . . 5 . . . . . . . . . 1 Critical Strikes 88 | . . 2 7 4 . . 1 1 1 1 2 12 . . . 1 5 . 6 45 Part Disruptions 1 | . . . . . 1 . . . . . . . . . . . . . . . Damage Taken 31372 | . . 1232 1280 1214 2255 281 742 253 543 799 691 2131 66 . . 411 2462 102 1995 14915 Core 2885 | . . 217 189 80 141 12 109 51 162 78 68 119 . . . 40 208 . 218 1193 Absorbed by Shields . | . . . . . . . . . . . . . . . . . . . . . Redirected to Shielding 630 | . . . . . . . . . . . . . . . . 154 . . . 476 Regen/Repaired (Parts) 11302 | . . . 103 . 553 5 273 61 38 783 373 565 120 37 106 . 1224 2019 249 4793 Core Remaining (%) 66 | 100 . 13 65 . . 66 . . . . 53 . . . . 86 84 . . . Volleys Fired 1022 | 5 1 76 127 76 88 20 38 12 17 14 34 75 10 2 . 9 129 12 51 226 Largest 3 | 2 2 2 3 3 3 3 1 1 1 1 1 1 1 1 . 1 2 1 2 2 Hottest 337 | 80 46 83 185 201 176 138 75 152 152 202 202 202 202 202 . 202 296 243 337 300 Shots Fired 1647 | 10 2 114 372 184 248 62 38 12 17 14 32 75 10 2 . 9 130 12 53 251 Gun 650 | 10 2 86 348 38 141 18 . . . . . . . . . . . . . 7 Cannon 904 | . . 28 22 146 105 44 35 8 11 14 13 75 10 2 . 9 130 12 53 187 Launcher 93 | . . . 2 . 2 . 3 4 6 . 19 . . . . . . . . 57 Special . | . . . . . . . . . . . . . . . . . . . . . Kinetic 706 | . 2 83 209 38 107 18 26 . . 1 9 69 10 2 . 9 72 9 36 6 Thermal 653 | 10 . 31 161 146 139 44 9 8 11 13 . . . . . . . . . 81 Explosive 36 | . . . 2 . 2 . 3 4 6 . 19 . . . . . . . . . Electromagnetic 251 | . . . . . . . . . . . 4 6 . . . . 58 3 16 164 Entropic 1 | . . . . . . . . . . . . . . . . . . . 1 . Robot Hit Streak 40 | 3 1 22 10 14 40 33 11 9 7 5 7 9 1 . . 3 10 2 6 23 Robot Miss Streak 10 | 1 1 2 5 4 3 1 6 1 1 5 1 3 3 . . 2 3 1 3 10 Penetration Max 1 | . . . 1 . . . . . . . . 1 . . . . 1 . . . Secondary Targets 6 | . . 4 2 . . . . . . . . . . . . . . . . . Max Gunslinging Chain 1 | . . 1 1 . . . . . . . . . . . . . . . . . Shots Hit Robots 1071 | 5 1 78 213 102 182 68 25 7 18 9 20 36 1 . 7 5 78 2 28 186 Core Hits 720 | 4 1 19 86 39 78 28 24 14 27 1 50 20 1 . 3 4 48 2 13 258 Critical Kills 27 | . . 1 3 . 1 . . . . . . 3 1 . . 3 10 . . 5 Critical Parts Destroyed 27 | . . . 1 . 1 . . . . . . 10 . . . . 10 . 2 3 Critical Strikes 71 | . . 2 11 . 2 . . . . . . 14 1 . . 3 21 . 2 15 Burn 7 | . . . 7 . . . . . . . . . . . . . . . . . Meltdown 3 | . . 1 1 . 1 . . . . . . . . . . . . . . . Destroy 54 | . . 1 3 . 1 . . . . . . 14 1 . . 3 20 . 2 9 Corrupt 4 | . . . . . . . . . . . . . . . . . 1 . . 3 Impale 3 | . . . . . . . . . . . . . . . . . . . . 3 Melee Attacks 113 | . . . 1 21 1 32 3 1 5 4 . . . . 7 3 3 . 14 18 Impact . | . . . . . . . . . . . . . . . . . . . . . Slashing 55 | . . . 1 21 1 32 . . . . . . . . . . . . . . Piercing 58 | . . . . . . . 3 1 5 4 . . . . 7 3 3 . 14 18 Sneak Attacks 25 | . . . . . . 19 1 . 2 . . . . . . . . . . 3 Combat Hostiles . | . . . . . . . . . . . . . . . . . . . . . Follow-up Attacks 2 | . . . . . . . . . . . . . . . . . . . . 2 Damage Inflicted 50961 | 54 15 1064 4146 2418 4455 2788 2030 1102 1800 888 3373 2545 54 . 506 223 4234 189 2073 17004 Guns 7495 | 54 15 826 3537 527 2292 238 . . . . . . . . . . . . . 6 Cannons 26919 | . . 238 355 1880 1911 762 1286 268 708 888 397 2300 54 . . 223 4185 85 1980 9399 Explosions 12746 | . . . 139 . 226 . 650 834 853 . 2976 245 . . . . 31 . . 6792 Melee 3536 | . . . 58 . . 1742 91 . 239 . . . . . 506 . . . 93 807 Ramming 265 | . . . 57 11 26 46 3 . . . . . . . . . 18 104 . . Kinetic 13323 | . 15 722 2018 527 1424 238 1286 . . . 250 2119 54 . . 223 2672 . 1515 260 Thermal 16758 | 54 . 342 1874 1880 2779 762 15 268 708 888 80 10 . . . . . . . 7098 Explosive 5849 | . . . 139 . 226 . 635 834 853 . 2896 235 . . . . 31 . . . Electromagnetic 11230 | . . . . . . . . . . . 147 181 . . . . 1513 85 465 8839 Impact . | . . . . . . . . . . . . . . . . . . . . . Slashing 1800 | . . . 58 . . 1742 . . . . . . . . . . . . . . Piercing 1736 | . . . . . . . 91 . 239 . . . . . 506 . . . 93 807 Highest Corruption 45 | . . . . 5 8 8 1 1 1 6 6 12 12 12 12 12 9 . 5 45 Average Corruption 7 | . . . . 3 5 8 1 1 1 5 6 7 12 12 11 12 4 . 3 17 Corruption Purged . | . . . . . . . . . . . . . . . . . . . . . Corruption Blocked . | . . . . . . . . . . . . . . . . . . . . . Effects 499 | . . . . 39 42 167 8 5 3 14 19 16 15 5 8 15 29 . 13 101 Message Errors 127 | . . . . 10 13 43 1 . . 2 6 4 1 2 . 6 6 . 6 27 Matter Fused 106 | . . . . 6 4 40 1 1 2 2 3 3 5 1 2 4 7 . 2 23 Heat Flow Errors 52 | . . . . 4 3 20 1 . . 3 1 2 . . 2 1 5 . . 10 Energy Discharges 68 | . . . . 4 8 21 1 4 1 5 . 3 1 1 4 2 4 . 3 6 Parts Rejected 6 | . . . . . . . . . . . . . . . . . . . 1 5 Parts Fused 5 | . . . . . . 1 . . . . . 1 . . . . 1 . . 2 Data Loss (minor) 62 | . . . . 9 3 19 3 . . 2 5 2 2 . . 1 4 . . 12 Data Loss (major) 30 | . . . . 2 5 11 1 . . . 2 . 4 1 . 1 . . . 3 Misfires 11 | . . . . 2 . 6 . . . . . . . . . . 1 . 1 1 Alerts 10 | . . . . 1 . 6 . . . . . . 2 . . . . . . 1 Misdirections 4 | . . . . . . . . . . . . 1 . . . . . . . 3 Weapon Failures 18 | . . . . 1 6 . . . . . 2 . . . . . 1 . . 8 Overload Shots . | . . . . . . . . . . . . . . . . . . . . . Overflow Damage 1800 | . . . . 76 30 370 56 34 6 62 97 124 . . 62 . 114 1 256 512 Projectiles 1126 | . . . . 76 30 . 20 33 . 62 15 118 . . . . 112 . 238 422 Explosions 200 | . . . . . . . 36 1 6 . 82 6 . . . . . . . 69 Melee 474 | . . . . . . 370 . . . . . . . . 62 . 2 1 18 21 Knockbacks 36 | . . . . . . . 7 . . . . 14 . . . . 13 . 2 . Impact . | . . . . . . . . . . . . . . . . . . . . . Kinetic 35 | . . . . . . . 7 . . . . 13 . . . . 13 . 2 . Secondary 1 | . . . . . . . . . . . . 1 . . . . . . . . Self-Inflicted Damage 1071 | . . . . . 16 . 168 . 4 . 51 66 . . . . 51 25 . 690 Shots 54 | . . . . . 1 . 2 . 1 . 1 1 . . . . 1 1 . 46 Rammed 15 | . . . 3 1 4 4 2 . . . . . . . . . . 1 . . Targets Rammed 25 | . . . 7 2 5 5 2 . . . . . . . . . 2 2 . . Kicked 2 | . . . . . . . . . . . . . . . . . 2 . . . Crushed 8 | . . . 4 1 1 1 . . . . . . . . . . . 1 . . Highest Temperature 642 | 72 6 11 214 360 452 267 161 251 195 336 292 420 189 150 27 179 199 642 480 387 Average Temperature 100 | 34 4 2 80 99 85 81 40 86 81 107 112 134 102 83 27 96 88 142 103 68 Received Heat Transfer 5232 | . . 228 540 219 597 66 54 99 129 9 151 54 9 . . 18 189 9 656 2205 Effects 21 | . . . . . 1 . . . . . . 1 . . . . . 15 4 . Shutdowns 3 | . . . . . . . . . . . . 1 . . . . . 1 1 . Energy Bleed 3 | . . . . . 1 . . . . . . . . . . . . 1 1 . Interference 5 | . . . . . . . . . . . . . . . . . . 5 . . Short Circuit 1 | . . . . . . . . . . . . . . . . . . . 1 . Damage (minor) 2 | . . . . . . . . . . . . . . . . . . 1 1 . Damage (major) 7 | . . . . . . . . . . . . . . . . . . 7 . . Siege Activations . | . . . . . . . . . . . . . . . . . . . . . Martial Activations . | . . . . . . . . . . . . . . . . . . . . . Shielding Activations . | . . . . . . . . . . . . . . . . . . . . . Robots Disrupted 2 | . . . . . . . . . . . . . . . . . . . . 2 Combat Hostiles 2 | . . . . . . . . . . . . . . . . . . . . 2 Robots Corrupted 59 | . . . . . . . . . . . . . . . . . 10 . 1 48 Combat Hostiles 56 | . . . . . . . . . . . . . . . . . 9 . 1 46 Parts Fried 120 | . . . . . . . . . . . . 1 . . . . 14 3 6 96 Impact Corruptions 2 | . . . . . . . . . . . . . . . . . 1 1 . . Robots Melted 4 | . . 1 1 . 1 1 . . . . . . . . . . . . . . Combat Hostiles 4 | . . 1 1 . 1 1 . . . . . . . . . . . . . . Parts Melted 38 | . . 2 7 13 12 3 . . . . . . . . . . . . . 1 Heat Transferred 18630 | 125 . 458 4181 3145 4968 1276 50 222 592 552 50 50 . . . . . . . 2961 Parts Sabotaged 5 | . . . . . . . . . 1 . . . . . . . . . . 4 Parts Stolen . | . . . . . . . . . . . . . . . . . . . . . Parts Stripped . | . . . . . . . . . . . . . . . . . . . . . Power Chain Reactions 7 | . . . . . . . . . . . 1 . . . . . . . . 6 Alert | -11 -10 -10 -8 -7 -7 -7 -5 -5 -5 -5 -4 -4 -4 -4 -4 -3 -3 -2 -2 -2 ------- Run | Yrd Mat Sub Mat Fac Sto Rec Fac Upp Upp War Pro Fac Upp Upp Zhi Pro Res Res Qua Frg Maximum Alert Level 5 | . . . 2 1 2 . 2 . . . . 2 . . . . 2 1 . 5 Low Security (%) 66 | 100 100 . 34 96 43 100 60 . . . . 79 . . . . 25 56 100 17 Level 1 13 | . . . 32 3 31 . 19 . . . . 7 . . . . 22 43 . 11 Level 2 12 | . . . 33 . 25 . 19 . . . . 12 . . . . 51 . . 10 Level 3 2 | . . . . . . . . . . . . . . . . . . . . 19 Level 4 3 | . . . . . . . . . . . . . . . . . . . . 30 Level 5 1 | . . . . . . . . . . . . . . . . . . . . 9 High Security . | . . . . . . . . . . . . . . . . . . . . . Max Security . | . . . . . . . . . . . . . . . . . . . . . Peak Influence 1966 | 5 5 . 553 245 528 199 465 . . . . 536 . . . . 692 388 153 1966 Initial 380 | . . . . 245 55 199 . . . . . 31 . . . . . 380 12 36 Average 226 | 1 . . 277 71 266 19 168 . . . . 114 . . . . 385 187 56 858 Influence Increases 10153 | 15 5 . 1165 541 1012 297 796 170 210 95 341 811 20 . 5 70 1175 77 482 2866 Destroy 0b10 Robot/C 5780 | . . . 720 280 580 100 300 160 200 20 300 240 20 . . 60 660 . 180 1960 Destroy 0b10 Robot/NC 515 | 15 5 . 90 60 55 115 30 . . . . 20 . . 5 . 40 15 20 45 Destroy Leader 1078 | . . . 188 118 200 . 56 10 10 . 20 60 . . . 10 142 2 42 220 Allied During Kill 6 | . . . . . . . . . . . 6 . . . . . . . . . Successful Hack 178 | . . . 25 13 18 40 27 . . . . . . . . . . 3 42 10 Disable Machine 810 | . . . 30 30 60 30 105 . . . . 210 . . . . 15 30 120 180 Anti-Garrison Action 150 | . . . . . . . . . . . . . . . . . . . . 150 Destroy Structure 1051 | . . . 37 25 69 12 278 . . . . 206 . . . . 138 27 48 211 Partial Spotted 30 | . . . . 15 . . . . . . . . . . . . . . 15 . Lose Combat Pursuer 555 | . . . 75 . 30 . . . . 75 15 75 . . . . 180 . 15 90 Influence Decreases 8199 | 15 5 . 624 960 623 807 387 446 252 176 302 355 348 94 89 70 499 730 439 978 Entered New Map 1619 | . . . . 296 67 312 1 152 26 92 11 19 188 34 84 . . 296 11 30 Time Decay 6088 | 15 5 . 614 654 546 493 376 294 216 82 271 268 160 60 5 60 469 434 398 668 Lost Part 462 | . . . 10 10 10 2 . . 10 2 . 68 . . . 10 30 . 30 280 Lost Ally 30 | . . . . . . . 10 . . . 20 . . . . . . . . . Squads Dispatched 61 | . . . 5 7 6 . 4 . 1 . 1 7 . . . . 5 1 7 17 Investigation 3 | . . . . 1 . . . . . . . . . . . . 1 . . 1 Extermination 28 | . . . . 6 3 . 3 . . . . 4 . . . . 3 . 4 5 Reinforcement 16 | . . . 4 . 3 . 1 . . . . 2 . . . . . 1 3 2 Assault 14 | . . . 1 . . . . . 1 . 1 1 . . . . 1 . . 9 Garrison . | . . . . . . . . . . . . . . . . . . . . . Intercept . | . . . . . . . . . . . . . . . . . . . . . Searches Triggered . | . . . . . . . . . . . . . . . . . . . . . Construction Impeded 2 | . . . 1 . . . 1 . . . . . . . . . . . . . Haulers Reinforced 1 | . . . . . . . . . . . . . . . . . . . 1 . Active Scanning Responses . | . . . . . . . . . . . . . . . . . . . . . Cargo Convoy Interrupts . | . . . . . . . . . . . . . . . . . . . . . Stealth | -11 -10 -10 -8 -7 -7 -7 -5 -5 -5 -5 -4 -4 -4 -4 -4 -3 -3 -2 -2 -2 --------- Run | Yrd Mat Sub Mat Fac Sto Rec Fac Upp Upp War Pro Fac Upp Upp Zhi Pro Res Res Qua Frg Distress Signals 29 | . . . 4 . 2 2 1 . . 3 . . . . . . 1 14 2 . Communications Jammed 16 | . . . . . . . . . . . . . . . . . 5 . 11 . Distress Signals 16 | . . . . . . . . . . . . . . . . . 5 . 11 . Times Spotted 461 | . . 11 56 28 33 6 20 8 10 60 18 22 1 . . 3 46 5 16 118 Peak Tracking Total 17 | . . 3 4 3 3 2 4 7 5 17 9 4 1 . . 2 6 1 3 12 Tactical Retreats 22 | . . . 4 . 1 1 . . . 3 1 3 . . . . 4 . 1 4 Traps | -11 -10 -10 -8 -7 -7 -7 -5 -5 -5 -5 -4 -4 -4 -4 -4 -3 -3 -2 -2 -2 ------- Run | Yrd Mat Sub Mat Fac Sto Rec Fac Upp Upp War Pro Fac Upp Upp Zhi Pro Res Res Qua Frg Traps Triggered 20 | . . . . 3 . . . . . . . 1 . . . . 2 . . 14 Indirectly 11 | . . . . . . . . . . . . . . . . . . . . 11 Trap Hack Attempts . | . . . . . . . . . . . . . . . . . . . . . Triggered . | . . . . . . . . . . . . . . . . . . . . . Disarmed . | . . . . . . . . . . . . . . . . . . . . . Reprogrammed . | . . . . . . . . . . . . . . . . . . . . . Reused . | . . . . . . . . . . . . . . . . . . . . . Traps Extracted . | . . . . . . . . . . . . . . . . . . . . . Installed . | . . . . . . . . . . . . . . . . . . . . . Triggered . | . . . . . . . . . . . . . . . . . . . . . Machines | -11 -10 -10 -8 -7 -7 -7 -5 -5 -5 -5 -4 -4 -4 -4 -4 -3 -3 -2 -2 -2 ---------- Run | Yrd Mat Sub Mat Fac Sto Rec Fac Upp Upp War Pro Fac Upp Upp Zhi Pro Res Res Qua Frg Machines Disabled 62 | . . . 2 2 4 2 7 1 1 3 . 14 . . . . 1 2 8 15 Max in Single Turn 7 | . . . 1 1 2 1 3 1 1 1 . 7 . . . . 1 1 1 1 Garrison Access 5 | . . . 1 . . . . . . . . . . . . . 1 2 . 1 Machines Repaired . | . . . . . . . . . . . . . . . . . . . . . Machines Dismantled 1 | . . . . . . . . . . 1 . . . . . . . . . . Machines Sabotaged . | . . . . . . . . . . . . . . . . . . . . . Overloaded Fab Kills . | . . . . . . . . . . . . . . . . . . . . . Hacking | -11 -10 -10 -8 -7 -7 -7 -5 -5 -5 -5 -4 -4 -4 -4 -4 -3 -3 -2 -2 -2 --------- Run | Yrd Mat Sub Mat Fac Sto Rec Fac Upp Upp War Pro Fac Upp Upp Zhi Pro Res Res Qua Frg Machines Accessed 81 | . 2 . 9 16 7 9 6 1 . 4 . 4 . . 4 . 4 2 9 4 Terminals 42 | . 1 . 4 10 3 5 4 1 . . . 2 . . . . 2 1 5 4 Fabricators 1 | . . . . 1 . . . . . . . . . . . . . . . . Repair Stations 8 | . . . 2 2 2 . . . . . . . . . . . . . 2 . Recycling Units 14 | . 1 . 2 2 2 3 2 . . . . 2 . . . . . . . . Scanalyzers 1 | . . . . . . . . . . . . . . . . . . . 1 . Garrison Access 6 | . . . 1 1 . . . . . . . . . . . . 2 1 1 . Total Hacks 171 | . 3 . 25 27 14 21 9 2 . 5 . 12 . . 17 . 9 4 14 9 Successful 90 | . 1 . 12 7 10 15 2 2 . 5 . 2 . . 17 . 1 3 9 4 Failed 81 | . 2 . 13 20 4 6 7 . . . . 10 . . . . 8 1 5 5 Catastrophic 19 | . . . . 4 3 1 3 . . . . 1 . . . . 1 . 3 3 Database Lockouts . | . . . . . . . . . . . . . . . . . . . . . Manual 60 | . . . 13 10 1 16 2 . . . . 6 . . . . 2 2 5 3 Terminals 85 | . 2 . 15 17 3 10 4 2 . . . 6 . . . . 5 3 9 9 Fabricators 3 | . . . . 3 . . . . . . . . . . . . . . . . Repair Stations 19 | . . . 3 4 9 . . . . . . . . . . . . . 3 . Recycling Units 30 | . 1 . 5 2 2 9 5 . . . . 6 . . . . . . . . Scanalyzers 1 | . . . . . . . . . . . . . . . . . . . 1 . Garrison Access 9 | . . . 2 1 . . . . . . . . . . . . 4 1 1 . Terminal Hacks 43 | . . . 3 1 2 2 . 2 . 5 . . . . 17 . . 2 5 4 Record 12 | . . . . . . . . 2 . 4 . . . . 5 . . 1 . . Part Schematic 6 | . . . 2 . . . . . . . . . . . 4 . . . . . Robot Analysis 4 | . . . . . . . . . . . . . . . 4 . . . . . Prototype ID Bank 4 | . . . . . . . . . . . . . . . 4 . . . . . Open Door 3 | . . . . . 2 . . . . 1 . . . . . . . . . . Branch Access Points 3 | . . . 1 1 . . . . . . . . . . . . . 1 . . Locate Traps 2 | . . . . . . . . . . . . . . . . . . . 1 1 Recall Investigation 2 | . . . . . . . . . . . . . . . . . . . 1 1 Hauler Manifests 1 | . . . . . . . . . . . . . . . . . . . 1 . Registered Components 1 | . . . . . . . . . . . . . . . . . . . 1 . Zone Layout 2 | . . . . . . . . . . . . . . . . . . . 1 1 Proto ID Catalog 1 | . . . . . . . . . . . . . . . . . . . . 1 Release Object 2 | . . . . . . 2 . . . . . . . . . . . . . . Fabricator Hacks 2 | . . . . 2 . . . . . . . . . . . . . . . . Network Status 1 | . . . . 1 . . . . . . . . . . . . . . . . Load Schematic 1 | . . . . 1 . . . . . . . . . . . . . . . . Repair Station Hacks 13 | . . . 2 1 8 . . . . . . . . . . . . . 2 . Scan Component 7 | . . . 1 1 4 . . . . . . . . . . . . . 1 . Repair 6 | . . . 1 . 4 . . . . . . . . . . . . . 1 . Recycling Unit Hacks 9 | . 1 . 2 1 . 3 1 . . . . 1 . . . . . . . . Retrieve Components 9 | . 1 . 2 1 . 3 1 . . . . 1 . . . . . . . . Scanalyzer 1 | . . . . . . . . . . . . . . . . . . . 1 . Insert Component 1 | . . . . . . . . . . . . . . . . . . . 1 . Garrison Access Hacks 3 | . . . 1 . . . . . . . . . . . . . 1 1 . . Seal Access 3 | . . . 1 . . . . . . . . . . . . . 1 1 . . Unauthorized Hacks 19 | . . . 4 2 . 10 1 . . . . 1 . . . . . . 1 . Terminals 11 | . . . 2 2 . 4 1 . . . . 1 . . . . . . 1 . Track 1 | . . . . 1 . . . . . . . . . . . . . . . . Assimilate 2 | . . . . . . . 1 . . . . . . . . . . . 1 . Botnet 5 | . . . 2 1 . 1 . . . . . 1 . . . . . . . . Skim 3 | . . . . . . 3 . . . . . . . . . . . . . . Fabricators . | . . . . . . . . . . . . . . . . . . . . . Repair Stations . | . . . . . . . . . . . . . . . . . . . . . Recycling Units 8 | . . . 2 . . 6 . . . . . . . . . . . . . . Reject 4 | . . . 1 . . 3 . . . . . . . . . . . . . . Mask 4 | . . . 1 . . 3 . . . . . . . . . . . . . . Scanalyzers . | . . . . . . . . . . . . . . . . . . . . . Garrison Access . | . . . . . . . . . . . . . . . . . . . . . Data Cores Recovered 1 | . . . . . . . . . . . . . . . . . . . 1 . Used . | . . . . . . . . . . . . . . . . . . . . . Hacking Detections 61 | . 2 . 7 15 5 7 6 1 . . . 3 . . . . 3 1 7 4 Full Trace Events 2 | . . . . . . . . . . . . . . . . . 1 . . 1 Feedback Events . | . . . . . . . . . . . . . . . . . . . . . Feedback Blocked . | . . . . . . . . . . . . . . . . . . . . . Robot Schematics Acquired 5 | . . . . . . . . . . . . . . . . . . . 1 4 Robots Built . | . . . . . . . . . . . . . . . . . . . . . Authchips . | . . . . . . . . . . . . . . . . . . . . . Time . | . . . . . . . . . . . . . . . . . . . . . Total Robot Build Rating . | . . . . . . . . . . . . . . . . . . . . . Part Schematics Acquired 18 | . . . 2 . . . . . . . . . . . 4 . . . 4 8 Parts Built . | . . . . . . . . . . . . . . . . . . . . . Authchips . | . . . . . . . . . . . . . . . . . . . . . Time . | . . . . . . . . . . . . . . . . . . . . . Total Part Build Rating . | . . . . . . . . . . . . . . . . . . . . . Parts Repaired 6 | . . . 1 . 4 . . . . . . . . . . . . . 1 . Time 289 | . . . 32 . 171 . . . . . . . . . . . . . 86 . Parts Recycled . | . . . . . . . . . . . . . . . . . . . . . Recycled Matter . | . . . . . . . . . . . . . . . . . . . . . Retrieved Matter . | . . . . . . . . . . . . . . . . . . . . . Retrieved Components 45 | . 2 . 20 10 . 11 . . . . . 2 . . . . . . . . Parts Scanalyzed . | . . . . . . . . . . . . . . . . . . . . . Part Schematics Acquired . | . . . . . . . . . . . . . . . . . . . . . Parts Damaged . | . . . . . . . . . . . . . . . . . . . . . Bothacking | -11 -10 -10 -8 -7 -7 -7 -5 -5 -5 -5 -4 -4 -4 -4 -4 -3 -3 -2 -2 -2 ------------ Run | Yrd Mat Sub Mat Fac Sto Rec Fac Upp Upp War Pro Fac Upp Upp Zhi Pro Res Res Qua Frg Used RIF Installer . | . . . . . . . . . . . . . . . . . . . . . Robots Hacked . | . . . . . . . . . . . . . . . . . . . . . Non-combat . | . . . . . . . . . . . . . . . . . . . . . Combat . | . . . . . . . . . . . . . . . . . . . . . Robot Hacks Applied . | . . . . . . . . . . . . . . . . . . . . . Relay Couplers Released 4 | . . . . . . . . . . . . . . . . . . 2 . 2 Machine Destruction 4 | . . . . . . . . . . . . . . . . . . 2 . 2 Fabnet Peak Effective % . | . . . . . . . . . . . . . . . . . . . . . Robots Rewired 2 | . . . . . . . . . . . 2 . . . . . . . . . Allies Hacked . | . . . . . . . . . . . . . . . . . . . . . Hacks Repelled . | . . . . . . . . . . . . . . . . . . . . . Allies | -11 -10 -10 -8 -7 -7 -7 -5 -5 -5 -5 -4 -4 -4 -4 -4 -3 -3 -2 -2 -2 -------- Run | Yrd Mat Sub Mat Fac Sto Rec Fac Upp Upp War Pro Fac Upp Upp Zhi Pro Res Res Qua Frg Total Allies 3 | . . . . . . . 1 . . . 2 . . . . . . . . . Largest Group 2 | . . . . . . . 1 . . . 2 . . . . . . . . . Highest-Rated Group 77 | . . . . . . . 26 . . . 77 . . . . . . . . . Highest-Rated Ally 47 | . . . . . . . 26 . . . 47 . . . . . . . . . Total Orders 5 | . . . . . . . 1 . . . . 4 . . . . . . . . EXPLORE 3 | . . . . . . . 1 . . . . 2 . . . . . . . . RETURN 2 | . . . . . . . . . . . . 2 . . . . . . . . Ally Attacks 8 | . . . . . . . . . . . 8 . . . . . . . . . Total Damage 139 | . . . . . . . . . . . 139 . . . . . . . . . Kills . | . . . . . . . . . . . . . . . . . . . . . Allies Corrupted 1 | . . . . . . . 1 . . . . . . . . . . . . . Allies Melted 1 | . . . . . . . . . . 1 . . . . . . . . . . Intel | -11 -10 -10 -8 -7 -7 -7 -5 -5 -5 -5 -4 -4 -4 -4 -4 -3 -3 -2 -2 -2 ------- Run | Yrd Mat Sub Mat Fac Sto Rec Fac Upp Upp War Pro Fac Upp Upp Zhi Pro Res Res Qua Frg Active Infowar (turns) 13678 | 22 182 1586 39 2369 57 . 1302 632 431 756 503 1041 310 122 211 342 1244 1062 1113 354 Sensors 11377 | . . . . 2347 55 . 1216 630 423 756 497 1030 310 122 211 339 988 1062 1048 343 Structural 10881 | . . . . 2349 57 . 1223 632 431 683 498 858 309 122 202 339 847 928 1057 346 Seismic 1829 | 22 182 1586 39 . . . . . . . . . . . . . . . . . Jamming 2065 | . . . . . . . . . . . . . . . . 3 981 421 660 . Robot Analysis Total 4 | . . . . . . . . . . . . . . . 4 . . . . . Derelict Logs Recovered 4 | . . 1 . . . . . . . . 1 . 1 1 . . . . . . Drone Launches 8 | . . . . . . . 2 . . . . 6 . . . . . . . . Drone Recoveries 4 | . . . . . . . . . . . . 4 . . . . . . . . Exploration | -11 -10 -10 -8 -7 -7 -7 -5 -5 -5 -5 -4 -4 -4 -4 -4 -3 -3 -2 -2 -2 ------------- Run | Yrd Mat Sub Mat Fac Sto Rec Fac Upp Upp War Pro Fac Upp Upp Zhi Pro Res Res Qua Frg Turns Passed 27253 | 117 182 1586 2421 2683 1577 5185 1461 654 500 1459 602 1358 329 122 211 365 1437 1062 1333 2609 Spaces Moved 13927 | 67 115 961 990 1305 504 1821 662 343 245 975 342 579 240 138 205 386 1077 994 786 1192 Core 5 | 5 . . . . . . . . . . . . . . . . . . . . Treads 7953 | . . 165 990 1305 504 1821 662 343 245 842 342 219 . . . . . 390 . 125 Legs 4574 | 62 115 796 . . . . . . . 128 . 184 240 138 205 386 1077 547 . 696 Wheels . | . . . . . . . . . . . . . . . . . . . . . Hover 56 | . . . . . . . . . . 5 . . . . . . . . . 51 Flight 1339 | . . . . . . . . . . . . 176 . . . . . 57 786 320 Fastest Speed 35 | 50 120 120 160 170 167 158 158 173 110 76 76 139 85 85 85 85 77 77 128 35 Average Speed 142 | 117 120 126 164 170 189 214 175 177 172 121 137 141 121 85 85 85 91 83 128 107 Slowest Speed 325 | 150 120 160 170 170 250 325 204 204 173 186 139 148 148 85 85 85 130 231 128 209 Overloaded Moves . | . . . . . . . . . . . . . . . . . . . . . Propulsion Burnouts . | . . . . . . . . . . . . . . . . . . . . . Robots Hopped 5 | . . . . . . . . . . . . . . . . . . . 4 1 Potential Cave-ins 13 | . . . . . . . . . . . . . . . . 1 . . . 12 Cave-ins Triggered 1 | . . . . . . . . . . . . . . . . . . . . 1 Exploration Rate (%) 49 | 5 24 38 91 44 81 99 24 53 38 88 59 23 58 27 61 55 24 30 82 28 Regions Visited 20 Branch Regions 13 Pre-discovered Areas 3 | . . . . . . . . . . . . . . . 3 . . . . . Known Exits Taken 11 | . . . . 1 1 1 1 1 1 1 1 . . . . 1 . 1 1 . Unknown Exits Taken 9 | 1 1 1 1 . . . . . . . . 1 1 1 1 . 1 . . . Scrap Searched 12 | . . 3 . . . . . 1 3 . . . 3 1 . 1 . . . . Spaces Dug 238 | . . 1 . 23 19 1 65 9 3 7 3 23 11 3 . 5 12 10 4 39 Terrain Destroyed 825 | . . 5 33 24 58 11 149 26 49 8 120 121 17 3 . 15 91 11 26 58 Melee 34 | . . . . 19 1 . 2 1 1 4 . . . . . 3 3 . . . Projectile 321 | . . 5 8 5 9 11 35 10 6 4 4 53 17 3 . 12 59 11 26 43 AOE 470 | . . . 25 . 48 . 112 15 42 . 116 68 . . . . 29 . . 15 Terrain Rammed . | . . . . . . . . . . . . . . . . . . . . . Walls Destroyed . | . . . . . . . . . . . . . . . . . . . . . Machines Disabled . | . . . . . . . . . . . . . . . . . . . . . Actions | -11 -10 -10 -8 -7 -7 -7 -5 -5 -5 -5 -4 -4 -4 -4 -4 -3 -3 -2 -2 -2 --------- Run | Yrd Mat Sub Mat Fac Sto Rec Fac Upp Upp War Pro Fac Upp Upp Zhi Pro Res Res Qua Frg Total 19614 | 91 158 1228 1513 1549 917 3020 911 372 294 1217 426 1031 267 140 230 407 1375 1221 1029 2218 Wait 3617 | 8 29 164 275 24 256 1110 146 9 7 158 13 320 7 . . 5 97 184 144 661 Move 13897 | 66 114 960 989 1304 503 1820 661 342 244 974 341 578 239 137 204 385 1076 993 778 1189 Hop 4 | . . . . . . . . . . . . . . . . . . . 3 1 Pick Up 133 | 4 5 8 28 9 13 6 12 2 2 8 2 5 2 . 1 . 5 4 6 11 Fast Attach 140 | 7 4 3 27 10 18 4 4 . 1 15 . 3 . . 8 . 5 7 2 22 Attach 67 | . . 6 4 3 1 . 3 . . 3 . 7 4 . 1 1 4 2 4 24 Detach 47 | . . . . 1 . 3 1 . . 4 . 1 . . 2 . 4 7 2 22 Swap 323 | 1 . 6 15 81 14 1 27 6 11 8 22 21 2 1 1 4 45 3 20 34 Drop 186 | . 5 5 40 18 16 19 14 . 7 21 2 3 3 . 6 . 5 7 5 10 Fire 1022 | 5 1 76 127 76 88 20 38 12 17 14 34 75 10 2 . 9 129 12 51 226 Melee 111 | . . . 1 21 1 32 3 1 5 4 . . . . 7 3 3 . 14 16 Ram . | . . . . . . . . . . . . . . . . . . . . . Kick 2 | . . . . . . . . . . . . . . . . . 2 . . . Crush 23 | . . . 7 2 5 5 2 . . . . . . . . . . 2 . . Escape Stasis 20 | . . . . . . . . . . . . 18 . . . . . . . 2 Rewire 14 | . . . . . 2 . . . . . 12 . . . . . . . . . Trap . | . . . . . . . . . . . . . . . . . . . . . Miscellaneous 8 | . . . . . . . . . . 8 . . . . . . . . . . Route ------- -11/Scrapyard -10/Materials (discovered 2 exits: [*Min] / [*Sub]) -10/Subcaves -8/Materials (discovered 2 exits: *Fac x2) -7/Factory (discovered 4 exits: *Fac / *Sto / Low x2) -7/Storage -7/Recycling -5/Factory (discovered 2 exits: *Fac / *Upp) -5/Upper Caves -5/Upper Caves -5/Warlord -4/Proximity Caves -4/Factory (discovered 2 exits: *Res / [*Upp]) -4/Upper Caves -4/Upper Caves -4/Zhirov -3/Proximity Caves -3/Research (discovered 2 exits: *Res / Arm) -2/Research (discovered 2 exits: *Qua x2) -2/Quarantine (discovered 3 exits: *Acc / [*Sec] / *Frg) -2/Protoforge (discovered 1 exit: *Acc) History --------- Turn | Location | Event 10 | -11/Scrapyard | Discovered new exit (range 16) 118 | -11/Scrapyard | Entered Materials 118 | -10/Materials | Discovered new exit (range 8) 274 | -10/Materials | Discovered new exit (range 4) 300 | -10/Materials | Entered Subcaves 301 | -10/Subcaves | Approached by a straggling Scientist 309 | -10/Subcaves | A swath of the cavern ceiling suddenly collapsed 316 | -10/Subcaves | Build established: Mutant 847 | -10/Subcaves | Lost 5 parts (1p2n2w) 899 | -10/Subcaves | Core integrity fell below 50% 955 | -10/Subcaves | Shifting Twisted Machinery released Sub. Beam Cannon 1069 | -10/Subcaves | Learned Materials emergency access door positions 1467 | -10/Subcaves | Shifting Twisted Machinery released Sub. Optics 1614 | -10/Subcaves | Ambushed by angry Subdweller bent on revenge 1618 | -10/Subcaves | Core integrity fell below 20% 1657 | -10/Subcaves | Lost 3 parts (2n1w) 1818 | -10/Subcaves | Discovered new exit (range 5) 1863 | -10/Subcaves | Disturbed a concealed Subdweller 1886 | -10/Subcaves | Entered Materials 1886 | -8/Materials | Evolved 4 slots: Propulsion x2, Utility x1, Weapon x1 2381 | -8/Materials | Build established: Scavenger-Tank 2601 | -8/Materials | Repaired Autogun 2913 | -8/Materials | Discovered new exit (range 6) 3537 | -8/Materials | Build established: Tank 4100 | -8/Materials | Discovered new exit (range 10) 4286 | -8/Materials | First assault squad dispatched 4307 | -8/Materials | Entered Factory 4307 | -7/Factory | Evolved 2 slots: Utility x2 5580 | -7/Factory | Build established: Assassin 6374 | -7/Factory | Discovered new exit (range 14) 6395 | -7/Factory | Identified exit to Factory 6543 | -7/Factory | Identified exit to Storage 6543 | -7/Factory | Identified exit to Lower Caves 6990 | -7/Factory | Entered Storage 7025 | -7/Storage | Repaired Arm. Treads 7492 | -7/Storage | Build established: Gunner 7673 | -7/Storage | Repaired Lyr. Light Armor Plating 7712 | -7/Storage | Repaired Imp. Heat Sink 7784 | -7/Storage | Repaired Prc. Assault Rifle 8557 | -7/Storage | Used back door to open Recycling access 8557 | -7/Storage | Discovered new exit (range 5) 8565 | -7/Storage | Identified exit to Recycling 8567 | -7/Storage | Entered Recycling 9833 | -7/Recycling | Discovered new exit (range 16) 10220 | -7/Recycling | Entered Scraplab 10239 | -7/Recycling | Found Prototype Device 10239 | -7/Recycling | Identified Scrap Engine 10946 | -7/Recycling | Build established: Mutant 12005 | -7/Recycling | Build established: Construct 13750 | -7/Recycling | Identified exit to Factory 13752 | -7/Recycling | Entered Factory 13752 | -5/Factory | Evolved 4 slots: Power x1, Propulsion x1, Utility x2 13765 | -5/Factory | Discovered new exit (range 15) 13795 | -5/Factory | Identified exit to Upper Caves 14118 | -5/Factory | Discovered new exit (range 8) 14127 | -5/Factory | Identified exit to Factory 15213 | -5/Factory | Entered Upper Caves 15617 | -5/Upper Caves | Attracted the attention of an 0b10 base 15655 | -5/Upper Caves | Destroyed 8 combat bots 15848 | -5/Upper Caves | Discovered new exit (range 12) 15865 | -5/Upper Caves | Identified exit to Upper Caves 15867 | -5/Upper Caves | Entered another Upper Caves area 16132 | -5/Upper Caves | Attracted the attention of an 0b10 outpost 16142 | -5/Upper Caves | Discovered new exit (range 8) 16179 | -5/Upper Caves | Identified exit to Warlord 16367 | -5/Upper Caves | Entered Warlord 16404 | -5/Warlord | System corruption cleaned by Quarantine Array 16775 | -5/Warlord | Found Prototype Hackware 16780 | -5/Warlord | Found Prototype Processor 16792 | -5/Warlord | Found Prototype Device 16792 | -5/Warlord | Identified Exp. Phase Shifter 16799 | -5/Warlord | Found Prototype Reactor 16860 | -5/Warlord | Learned Quarantine security intel 16860 | -5/Warlord | Learned Research scanalyzer intel 16865 | -5/Warlord | Learned Armory trap positions 16965 | -5/Warlord | Visited the Vortex Lab 16977 | -5/Warlord | Warlord's base attacked by MAIN.C 16978 | -5/Warlord | Found Prototype Energy Cannon 16978 | -5/Warlord | Identified Vortex Driver 16986 | -5/Warlord | Found Vortex Driver 17064 | -5/Warlord | Met Warlord 17283 | -5/Warlord | Lost 5 allies 17327 | -5/Warlord | Warlord forces counterattacked 17372 | -5/Warlord | Spotted Executioner 17440 | -5/Warlord | Spotted Striker 17485 | -5/Warlord | P-70 Sage assimilated allied 01-CFH(g) 17485 | -5/Warlord | Spotted 01-CFH(g) 17486 | -5/Warlord | Spotted Executioner 17491 | -5/Warlord | P-70 Sage assimilated allied 0K-B5R(M) 17491 | -5/Warlord | Spotted B-86 Titan 17492 | -5/Warlord | P-70 Sage assimilated allied G8-D2I(M) 17576 | -5/Warlord | Lost 28 allies 17652 | -5/Warlord | Warlord base infiltrated, sounded retreat 17653 | -5/Warlord | Enhanced Grunt warped into view 17653 | -5/Warlord | Enhanced Grunt warped into view 17653 | -5/Warlord | Enhanced Grunt warped into view 17653 | -5/Warlord | Enhanced Demolisher warped into view 17653 | -5/Warlord | Enhanced Demolisher warped into view 17653 | -5/Warlord | Enhanced Demolisher warped into view 17680 | -5/Warlord | Spotted Striker 17777 | -5/Warlord | Spotted Executioner 17808 | -5/Warlord | Discovered new exit (range 9) 17814 | -5/Warlord | Identified exit to Proximity Caves 17826 | -5/Warlord | Entered Proximity Caves 17833 | -4/Proximity Caves | Learned 4 Research zone layouts 17840 | -4/Proximity Caves | Attracted the attention of an 0b10 outpost 17885 | -4/Proximity Caves | Destroyed 9 combat bots 18373 | -4/Proximity Caves | Discovered exit to Factory (range 15) 18428 | -4/Proximity Caves | Entered Factory 18428 | -4/Factory | Evolved 2 slots: Utility x2 18887 | -4/Factory | Discovered new exit (range 29) 18949 | -4/Factory | Discovered new exit (range 78) 19577 | -4/Factory | Identified exit to Research 19662 | -4/Factory | System corruption reached 10% 19678 | -4/Factory | First assault squad dispatched 19786 | -4/Factory | Entered Upper Caves 19788 | -4/Upper Caves | Attracted the attention of an 0b10 checkpoint 19803 | -4/Upper Caves | Learned Research stockpile data 19814 | -4/Upper Caves | Lost 4 parts (1p3u) 20104 | -4/Upper Caves | Discovered new exit (range 15) 20115 | -4/Upper Caves | Entered another Upper Caves area 20225 | -4/Upper Caves | Discovered new exit (range 6) 20232 | -4/Upper Caves | Learned Research terminal intel 20237 | -4/Upper Caves | Entered Zhirov 20237 | -4/Zhirov | Discovered new exit (range 3) 20253 | -4/Zhirov | Met Zhirov 20269 | -4/Zhirov | Learned location of Quarantine (-2) 20269 | -4/Zhirov | Learned location of Testing (-3) 20269 | -4/Zhirov | Learned location of Command (-1) 20283 | -4/Zhirov | Zhirov requested help retrieving the SGEMP Prototype 20297 | -4/Zhirov | Found Alien Artifact 20297 | -4/Zhirov | Identified Integrated Reactor 20297 | -4/Zhirov | Installed Integrated Reactor, increased core energy generation (+10) 20310 | -4/Zhirov | Found Alien Artifact 20448 | -4/Zhirov | Entered Proximity Caves 20691 | -3/Proximity Caves | Attracted the attention of an 0b10 checkpoint 20716 | -3/Proximity Caves | Unaware initiated a cargo recovery operation 20809 | -3/Proximity Caves | Discovered exit to Research (range 5) 20813 | -3/Proximity Caves | Entered Research 20813 | -3/Research | Evolved 2 slots: Propulsion x1, Utility x1 20813 | -3/Research | Identified System Mapper 20814 | -3/Research | Identified exit to Armory 20817 | -3/Research | Loaded intel: 21 terminal locations 20818 | -3/Research | Loaded intel: 6 scanalyzer locations 21115 | -3/Research | Build established: Hacker-Construct 21860 | -3/Research | Found Gamma Bomb Array 22063 | -3/Research | First assault squad dispatched 22079 | -3/Research | Identified Exp. Core Analyzer 22143 | -3/Research | Discovered new exit (range 15) 22250 | -3/Research | Entered another Research area 22250 | -2/Research | Warlord forces began assault on 0b10 22250 | -2/Research | Evolved 2 slots: Power x1, Weapon x1 22295 | -2/Research | Identified exit to Quarantine 22360 | -2/Research | Research machine network offline 22546 | -2/Research | Met up with Warlord 22782 | -2/Research | Borebot progress halted 22807 | -2/Research | Spotted Striker 22838 | -2/Research | Spotted Striker 22913 | -2/Research | Met DD-05H 23042 | -2/Research | Spotted Striker 23060 | -2/Research | Borebot progress halted 23178 | -2/Research | Borebot progress halted 23312 | -2/Research | Entered Quarantine 23345 | -2/Quarantine | Found Alien Slashing Weapon 23434 | -2/Quarantine | Cryocooling Duct disabled 23436 | -2/Quarantine | Lost 5 allies 23449 | -2/Quarantine | Ambient heat levels rising (+20) 23449 | -2/Quarantine | Non-combat units ordered to evacuate 23591 | -2/Quarantine | Found Alien Artifact 23682 | -2/Quarantine | Identified Vortex Chain Reactor 23767 | -2/Quarantine | Spotted Alpha 7 23833 | -2/Quarantine | Found Alien Energy Cannon 23845 | -2/Quarantine | Spotted 7H-04R(D) 23943 | -2/Quarantine | Destroyed 7H-04R(D) 23978 | -2/Quarantine | Found Alien Artifact 24030 | -2/Quarantine | Discovered new exit (range 9) 24135 | -2/Quarantine | Repaired Broken Adv. Transmission Jammer 24537 | -2/Quarantine | Spotted Fortress 24635 | -2/Quarantine | Discovered new exit (range 6) 24635 | -2/Quarantine | Discovered new exit (range 6) 24640 | -2/Quarantine | Identified exit to Protoforge 24645 | -2/Quarantine | Entered Protoforge 24754 | -2/Protoforge | Superfortress began startup sequence 24786 | -2/Protoforge | Spotted Hotshot 24786 | -2/Protoforge | Spotted Hotshot 24787 | -2/Protoforge | Spotted Hotshot 24798 | -2/Protoforge | Spotted Hotshot 24826 | -2/Protoforge | Destroyed Hotshot 24839 | -2/Protoforge | Destroyed Hotshot 24844 | -2/Protoforge | Destroyed Hotshot 24869 | -2/Protoforge | Destroyed Hotshot 24963 | -2/Protoforge | Discovered new exit (range 11) 25103 | -2/Protoforge | Identified exit to Access 25153 | -2/Protoforge | Spotted Hotshot 25153 | -2/Protoforge | Spotted Hotshot 25153 | -2/Protoforge | Spotted Hotshot 25153 | -2/Protoforge | Spotted Hotshot 25160 | -2/Protoforge | Destroyed Hotshot 25161 | -2/Protoforge | Destroyed Hotshot 25162 | -2/Protoforge | Destroyed Hotshot 25163 | -2/Protoforge | Destroyed Hotshot 25236 | -2/Protoforge | Identified Core Cannon 25237 | -2/Protoforge | Additional patrols dispatched to research labs 25249 | -2/Protoforge | Crushed by falling debris 25276 | -2/Protoforge | Found Prototype Launcher 25276 | -2/Protoforge | Identified Cep. Rapid Grenade Launcher 25284 | -2/Protoforge | Found Prototype Launcher 25284 | -2/Protoforge | Identified Cep. Tiamat Rocket Array 25291 | -2/Protoforge | Found Prototype Launcher 25291 | -2/Protoforge | Identified Cep. Smart ZDS 25304 | -2/Protoforge | Spotted Immortal 25304 | -2/Protoforge | Spotted Immortal 25316 | -2/Protoforge | Scanned by Researcher 25363 | -2/Protoforge | Destroyed Immortal 25366 | -2/Protoforge | Destroyed Immortal 25421 | -2/Protoforge | Spotted Decapitator 25421 | -2/Protoforge | Spotted Decapitator 25421 | -2/Protoforge | Spotted Decapitator 25457 | -2/Protoforge | Found Prototype Device 25457 | -2/Protoforge | Identified Cep. Antimissile System 25460 | -2/Protoforge | Found Cep. Antimissile System 25468 | -2/Protoforge | Found Prototype Device 25685 | -2/Protoforge | Spotted Hotshot 25687 | -2/Protoforge | Spotted Hotshot 25690 | -2/Protoforge | Spotted Hotshot 25693 | -2/Protoforge | Spotted Hotshot 25693 | -2/Protoforge | Spotted Immortal 25693 | -2/Protoforge | Spotted Immortal 25695 | -2/Protoforge | Spotted Immortal 25715 | -2/Protoforge | Destroyed Immortal 25721 | -2/Protoforge | Core integrity fell below 50% 25726 | -2/Protoforge | Destroyed Immortal 25731 | -2/Protoforge | Destroyed Immortal 25734 | -2/Protoforge | Destroyed Hotshot 25735 | -2/Protoforge | Destroyed Hotshot 25741 | -2/Protoforge | Destroyed Hotshot 25744 | -2/Protoforge | Destroyed Hotshot 25765 | -2/Protoforge | Destroyed 10 combat bots 25766 | -2/Protoforge | Lost 7 parts (1n4u2w) 25788 | -2/Protoforge | Spotted Decapitator 25788 | -2/Protoforge | Spotted Decapitator 25788 | -2/Protoforge | Spotted V423-c 25833 | -2/Protoforge | Found Corrupted Exp. Jetlance 25835 | -2/Protoforge | System corruption reached 10% 25930 | -2/Protoforge | Destroyed Decapitator 25932 | -2/Protoforge | Destroyed Decapitator 25933 | -2/Protoforge | Destroyed Decapitator 25945 | -2/Protoforge | Spotted Decapitator 25946 | -2/Protoforge | Spotted Decapitator 25947 | -2/Protoforge | Spotted Decapitator 25947 | -2/Protoforge | Spotted Decapitator 25948 | -2/Protoforge | Destroyed Decapitator 25950 | -2/Protoforge | Destroyed Decapitator 25950 | -2/Protoforge | Destroyed Decapitator 25951 | -2/Protoforge | Destroyed Decapitator 25983 | -2/Protoforge | Destroyed 9 combat bots 26037 | -2/Protoforge | Found Exp. Jetlance 26050 | -2/Protoforge | Identified Crosscalibrator 26114 | -2/Protoforge | Found Cep. Plasma Driver 26117 | -2/Protoforge | Found Cep. Helical Railcannon 26328 | -2/Protoforge | Found Faulty Exp. Jetlance 26331 | -2/Protoforge | Found Cep. Plasma Driver 26337 | -2/Protoforge | Found Cep. Plasma Driver 26338 | -2/Protoforge | Found Cep. Lightning Penetrator 26395 | -2/Protoforge | First assault squad dispatched 26399 | -2/Protoforge | Build established: Scavenger-Construct 26461 | -2/Protoforge | Spotted V098-e 26461 | -2/Protoforge | Spotted V959-w 26467 | -2/Protoforge | Destroyed V098-e 26469 | -2/Protoforge | Spotted V504-t 26474 | -2/Protoforge | Destroyed V959-w 26484 | -2/Protoforge | Destroyed V504-t 26518 | -2/Protoforge | Spotted V279-s 26692 | -2/Protoforge | Destroyed V279-s 26753 | -2/Protoforge | Build established: Construct 26905 | -2/Protoforge | System corruption reached 30% 26938 | -2/Protoforge | Spotted Decapitator 26938 | -2/Protoforge | Spotted Decapitator 26938 | -2/Protoforge | Spotted Decapitator 26953 | -2/Protoforge | Spotted Immortal 26953 | -2/Protoforge | Spotted Immortal 26975 | -2/Protoforge | Spotted Hotshot 26976 | -2/Protoforge | Spotted Hotshot 26977 | -2/Protoforge | Spotted Hotshot 26981 | -2/Protoforge | Spotted Hotshot 26987 | -2/Protoforge | Destroyed Hotshot 26988 | -2/Protoforge | Destroyed Hotshot 27067 | -2/Protoforge | Destroyed Hotshot 27071 | -2/Protoforge | Destroyed Hotshot 27169 | -2/Protoforge | Spotted AP7-3 27169 | -2/Protoforge | Spotted AP7-3 27188 | -2/Protoforge | Core integrity fell below 20% 27254 | -2/Protoforge | Destroyed by AP7-3 with Heavy Quantum Rifle Last Messages --------------- intact and functional. 27244_ Slug penetrates Reinforced Barrier. 27247_ Acquired 1 matter. 27247_ Penetrated by Slug. 27247_ Slug penetrates Reinforced Barrier. 27248_ G-73 Enforcer destroyed. 27249_ Acquired 1 matter. 27249_ Penetrated by Slug. 27249_ Slug penetrates Reinforced Barrier. 27250_ G-73 Enforcer suffers critical hit (Destroy). 27250_ Destroyed Hvy. Laser. 27251_ Acquired 1 matter. 27251_ Penetrated by Slug. 27251_ Slug penetrates Reinforced Barrier. 27251_ Prc. Thermal Caster Construct/C destroyed. 27251_ Arm. Scrap Engine damaged due to network destabilization (-6). 27252_ Acquired Exp. Jetlance. Map ----- +----------------------------------------------------+ | | | | | | | | | | | | | | | | | | | | | | | | | | | | | | | | | ?????????????????????????????????????????????????? | | ?????????????????????????????????????????????????? | | ?????????????????????????????????????????????????? | | ?????????????????????????????????????????????????? | | ?????????????????????????????????????????????????? | | ???????????####?############?????????????????????? | | ???????????#""""#"""""#""""#?????????????????????? | | ???????????#" " " " "==!"#?????????????????????? | | ???????????#" " *["77/=#?????????????????????? | | ???????????#" " [[!%!!@%#?????????????????????? | | ???????????##""" !g%%""##?????????????????????? | | ???######### =!!* #################### | | ? * | | ? ^ | | ? " ^ | | ??########## "%" #################### | | ???????????##"""" " """"##??????????????????? " | | ???????????#"!??""%" " "#????????????????????"" | | ???????????#" " " " "#?????????????????????# | | ???????????#" "#?????????????????????? | | ???????????#""""# #""""#?????????????????????? | | ???????????####### #######?????????????????????? | | ?????????????????# #???????????????????????????? | | ?????????????????# #???????????????????????????? | | ?????????????????# #???????????????????????????? | | ?????????????????# #???????????????????????????? | | ?????????????????# #???????????????????????????? | | ?????????????????# #???????????????????????????? | | ?????????????????# #??????????????###??????????? | | ?????????????????# ################"####???????? | | ?????????????????# [!%= ! "#???????? | | ?????????????????# [![= [[= #???????? | | ?????????????????# %= = %=%=#???????? | | ?????????????????## ################ %=##???????? | +----------------------------------------------------+ Best States ------------- Heat Dissipation 101 Coolant Potential 120 Energy Generation 94 Energy Capacity 2185 Matter Stores 300 Matter Capacity 300 Sight Range 16 Robot Scan Range 18 Terrain Scan Density 10 Jamming Range 16 Base Temperature (-) 200 Armor Coverage 825 Power Shielding 66 Propulsion Shielding 90 Weapon Shielding 90 Point Defense Rating 480 Phase Shifting 20 Evasion (%) 79 Targeting Accuracy 8 Core Analysis 11 Recoil Reduction 6 Offensive Hacking 20 Item Schematics ----------------- Hcp. Storage Unit | -8/Materials | Hacked Huge Storage Unit | -8/Materials | Hacked Assault Drone Bay | -4/Zhirov | Free Exp. Heat Sink | -4/Zhirov | Free Exp. Optical Array | -4/Zhirov | Free Imp. Arc Thrower | -4/Zhirov | Free Adv. KE Penetrator | -2/Quarantine | Archive Prc. Energy Filter | -2/Quarantine | Archive Adv. Kinecellerator | -2/Quarantine | Archive Com. Tesla Bomb Launcher | -2/Quarantine | Archive Centrium Heavy Armor Plating | -2/Protoforge | Archive Hds. Centrium Leg | -2/Protoforge | Archive Gravity Flail | -2/Protoforge | Archive Cld. Impulse Thruster | -2/Protoforge | Archive Imp. Q-thruster | -2/Protoforge | Archive Hvy. Antimatter Reactor | -2/Protoforge | Archive Cld. Q-thruster | -2/Protoforge | Archive Graviton Cannon | -2/Protoforge | Archive Robot Schematics ------------------ G-67 Veteran | -2/Quarantine | Archive G-73 Enforcer | -2/Protoforge | Archive A-02 Transporter | -2/Protoforge | Archive X-77 Beamer | -2/Protoforge | Archive H-88 Terminator | -2/Protoforge | Archive Fabricated ------------ Nothing Repaired ---------- Autogun | 10% | -8/Materials Arm. Treads | 36% | -7/Storage Lyr. Light Armor Plating | 5% | -7/Storage Imp. Heat Sink | 15% | -7/Storage Prc. Assault Rifle | 36% | -7/Storage Adv. Transmission Jammer | 80% | -2/Quarantine | Broken Alien Tech Used ----------------- Integrated Reactor Core Cannon Achievements -------------- None Challenges ------------ None Game ------ Seed LargeCloakPerforator Manual? 0 Play Time 05:07:30 Cumulative 198.3 hours Start 2025.06.10 @ 00:07:25 End 2025.06.10 @ 17:47:02 Sessions 7 Manual Loads 0 Difficulty Rogue Special Mode None Game No. 77 Rogue 77 Adventurer 0 Explorer 0 Win Type - Total 11 Types 1/0/6/0/0/1/2/0/0/1 Lore% 65 Gallery% 64 Achievement% 67 Wizard Run 0 Options --------- Layout 1 ASCII 0 Keyboard 0 Movement Arrows Keybinds 0 Fullscreen 2 Font 24/Terminus Map View 50x35 Zoom Use 0% Tactical HUD 1 Map Filters NONE Filters NONE Steam 1 RUN: afd3ed6e-c26d-46f0-bb81-f6d9f150b40e